[Event "European Rapid Championship 2021"]
[Site "Katowice"]
[Date "2021.12.19"]
[Round "9.27"]
[White "Diermair, Andreas"]
[Black "Solys, Laimutis"]
[Result "0-1"]
[ECO "D31"]
[WhiteElo "2408"]
[BlackElo "2300"]
[Annotator "NA"]
[PlyCount "136"]
[EventDate "2021.12.18"]
[EventType "swiss"]
[EventCountry "POL"]
[SourceTitle "playchess.com"]
[Source "ChessBase"]
[SourceQuality "1"]
[TimeControl "900+10"]

1. d4 {[%emt 0:00:01]} d5 {[%emt 0:00:05]} 2. c4 {[%emt 0:00:02]} e6 {[%emt 0:
00:01]} 3. Nc3 {[%emt 0:00:01]} dxc4 {[%emt 0:00:03]} 4. e4 {[%emt 0:00:13]} c5
{[%emt 0:00:03]} 5. d5 {[%emt 0:00:51]} Nf6 {[%emt 0:00:04]} 6. Bxc4 {[%emt 0:
01:21]} exd5 {[%emt 0:00:04]} 7. exd5 {[%emt 0:00:09]} Bd6 {[%emt 0:00:12]} 8.
Nf3 {[%emt 0:00:01]} O-O {[%emt 0:00:03]} 9. O-O {[%emt 0:00:03]} a6 {[%emt 0:
00:02]} 10. a4 {[%emt 0:00:02]} Bg4 {[%emt 0:00:02]} 11. h3 {[%emt 0:00:13]}
Bh5 {[%emt 0:00:34]} 12. Bg5 {[%emt 0:01:44]} Re8 {[%emt 0:00:04]} 13. g4 Bg6
14. Qb3 {[%emt 0:01:32]} Nbd7 {[%emt 0:04:39]} 15. Rfe1 {[%emt 0:00:14]} Qc7 {
[%emt 0:00:05]} 16. Kg2 {[%emt 0:00:05]} Ne4 {[%emt 0:01:04]} 17. Nxe4 {
[%emt 0:02:03]} Bxe4 {[%emt 0:00:04]} 18. Kg1 {[%emt 0:00:02]} Bxf3 {[%emt 0:
01:31]} 19. Qxf3 {[%emt 0:00:07]} Ne5 {[%emt 0:00:54]} 20. Qe4 {[%emt 0:02:25]}
h6 {[%emt 0:00:57]} 21. Be3 {[%emt 0:01:04]} Ng6 {[%emt 0:01:15]} 22. Qd3 {
[%emt 0:01:00]} Qd8 {[%emt 0:00:26]} 23. Bd2 {[%emt 0:01:16]} Qf6 {[%emt 0:03:
22]} 24. Re4 {[%emt 0:00:04]} Rxe4 {[%emt 0:00:02]} 25. Qxe4 {[%emt 0:00:37]}
Qxb2 {[%emt 0:00:43]} 26. Rd1 Kf8 27. Bc1 {[%emt 0:01:20]} Qc3 {[%emt 0:00:23]}
28. Qd3 {[%emt 0:00:34]} Qe5 {[%emt 0:00:08]} 29. Qg3 {[%emt 0:01:29]} Qf6 {
[%emt 0:00:03]} 30. f4 {[%emt 0:00:36]} Nxf4 {[%emt 0:00:18]} 31. Qf3 {[%emt 0:
00:09]} Re8 {[%emt 0:00:58]} 32. Bxf4 {[%emt 0:00:34]} Bxf4 {[%emt 0:01:37]}
33. d6 {[%emt 0:00:10]} Re3 34. Qf1 {[%emt 0:00:05]} Rg3+ {[%emt 0:00:25]} 35.
Kh1 {[%emt 0:00:13]} Qh4 36. Rd3 {[%emt 0:00:23]} Rxd3 {[%emt 0:00:26]} 37.
Qxd3 {[%emt 0:00:10]} Qf2 {[%emt 0:00:16]} 38. Qe2 {[%emt 0:00:02]} Qxe2 {
[%emt 0:00:11]} 39. Bxe2 {[%emt 0:00:02]} Bxd6 {[%emt 0:00:03]} 40. Kg2 {
[%emt 0:00:03]} Ke7 {[%emt 0:00:11]} 41. Kf3 {[%emt 0:00:01]} Bh2 {[%emt 0:00:
08]} 42. Ke4 {[%emt 0:00:07]} Kd6 {[%emt 0:00:03]} 43. Bc4 {[%emt 0:00:04]} Bg3
44. a5 {[%emt 0:00:05]} Be1 {[%emt 0:00:28]} 45. Bd5 {[%emt 0:00:02]} Bxa5 {
[%emt 0:00:03]} 46. Bxb7 {[%emt 0:00:01]} Be1 {[%emt 0:00:26]} 47. Bxa6 {
[%emt 0:00:07]} Ke6 {[%emt 0:00:00]} 48. Bc4+ {[%emt 0:00:13]} Kf6 49. Bb3 Kg5
{[%emt 0:00:09]} 50. Kf3 {[%emt 0:01:13]} f6 {[%emt 0:00:15]} 51. Bc4 {[%emt 0:
00:00]} g6 {[%emt 0:00:01]} 52. Bd3 {[%emt 0:00:05]} f5 {[%emt 0:00:03]} 53.
gxf5 {[%emt 0:00:01]} gxf5 {[%emt 0:00:01]} 54. Bc4 {[%emt 0:00:05]} Kf6 {
[%emt 0:00:04]} 55. Ke3 Ke5 56. Ba6 {[%emt 0:00:34]} Bh4 {[%emt 0:00:12]} 57.
Kf3 {[%emt 0:00:18]} Bg5 {[%emt 0:00:03]} 58. Bd3 {[%emt 0:00:02]} Bc1 {
[%emt 0:00:12]} 59. Ke2 {[%emt 0:00:38]} f4 {[%emt 0:00:00]} 60. Kf3 {[%emt 0:
00:22]} Kd4 {[%emt 0:00:05]} 61. Bg6 {[%emt 0:00:00]} c4 {[%emt 0:00:20]} 62.
Ke2 {[%emt 0:00:08]} Ba3 {[%emt 0:00:01]} 63. Bh7 {[%emt 0:00:10]} Bd6 {
[%emt 0:00:10]} 64. Bg6 {[%emt 0:00:00]} Kc3 {[%emt 0:00:00]} 65. Bf5 {[%emt 0:
00:04]} Kb2 {[%emt 0:00:00]} 66. Kd1 {[%emt 0:00:10]} c3 {[%emt 0:00:04]} 67.
Be4 {[%emt 0:00:11]} Bc5 {[%emt 0:00:04]} 68. Bd3 f3 0-1

[Event "European Rapid Championship 2021"]
[Site "Katowice"]
[Date "2021.12.19"]
[Round "9.27"]
[White "Parol, Pawel"]
[Black "Flasinski, Michal"]
[Result "1/2-1/2"]
[ECO "D11"]
[WhiteElo "2146"]
[BlackElo "2195"]
[Annotator "NA"]
[PlyCount "116"]
[EventDate "2021.12.18"]
[EventType "swiss"]
[EventCountry "POL"]
[SourceTitle "playchess.com"]
[Source "ChessBase"]
[SourceQuality "1"]
[TimeControl "900+10"]

1. d4 d5 {[%emt 0:00:01]} 2. c4 {[%emt 0:00:02]} c6 {[%emt 0:00:01]} 3. Nf3 {
[%emt 0:00:10]} Nf6 {[%emt 0:00:02]} 4. e3 {[%emt 0:00:00]} Bg4 {[%emt 0:00:06]
} 5. Qb3 {[%emt 0:00:08]} Qb6 {[%emt 0:00:25]} 6. c5 {[%emt 0:01:21]} Qc7 {
[%emt 0:00:09]} 7. Ne5 {[%emt 0:01:07]} Nbd7 {[%emt 0:00:47]} 8. Nxg4 {[%emt 0:
00:23]} Nxg4 {[%emt 0:00:02]} 9. Be2 {[%emt 0:00:08]} Ngf6 {[%emt 0:00:25]} 10.
Nc3 {[%emt 0:00:45]} e5 {[%emt 0:00:13]} 11. O-O {[%emt 0:01:11]} Be7 {[%emt 0:
00:06]} 12. Bd2 {[%emt 0:01:23]} O-O {[%emt 0:00:03]} 13. Qc2 {[%emt 0:00:14]}
Ne8 {[%emt 0:02:29]} 14. b4 {[%emt 0:01:00]} Bf6 {[%emt 0:00:05]} 15. Qd3 {
[%emt 0:00:44]} g6 {[%emt 0:00:24]} 16. f4 {[%emt 0:01:10]} exd4 {[%emt 0:02:
21]} 17. exd4 {[%emt 0:00:01]} Ng7 {[%emt 0:00:02]} 18. Bg4 {[%emt 0:00:31]}
Rae8 {[%emt 0:00:29]} 19. f5 {[%emt 0:00:50]} g5 {[%emt 0:00:24]} 20. h4 {
[%emt 0:02:31]} h6 {[%emt 0:00:44]} 21. hxg5 {[%emt 0:00:50]} hxg5 {[%emt 0:00:
06]} 22. Rf3 {[%emt 0:00:57]} Re7 {[%emt 0:00:55]} 23. Rh3 {[%emt 0:00:44]} Ne8
{[%emt 0:02:37]} 24. Kf2 {[%emt 0:00:27]} Bg7 {[%emt 0:01:37]} 25. f6 {[%emt 0:
02:05]} Ndxf6 {[%emt 0:00:32]} 26. Bf5 {[%emt 0:00:02]} g4 {[%emt 0:00:55]} 27.
Rh4 {[%emt 0:00:41]} g3+ {[%emt 0:00:16]} 28. Kg1 {[%emt 0:00:04]} Re4 {
[%emt 0:00:34]} 29. Nxe4 {[%emt 0:00:11]} dxe4 {[%emt 0:00:09]} 30. Bxe4 {
[%emt 0:00:18]} Nxe4 {[%emt 0:00:47]} 31. Qxe4 {[%emt 0:00:01]} f5 {[%emt 0:00:
31]} 32. Qe6+ {[%emt 0:00:14]} Qf7 {[%emt 0:00:01]} 33. Re1 {[%emt 0:00:13]}
Nc7 {[%emt 0:00:34]} 34. Qxf7+ {[%emt 0:00:12]} Kxf7 {[%emt 0:00:02]} 35. Bc3 {
[%emt 0:00:11]} Nd5 {[%emt 0:00:07]} 36. Bb2 {[%emt 0:00:08]} Nxb4 {[%emt 0:00:
28]} 37. Re3 {[%emt 0:00:11]} Nd5 {[%emt 0:00:31]} 38. Rxg3 {[%emt 0:00:04]} f4
{[%emt 0:00:03]} 39. Rgg4 {[%emt 0:00:17]} Re8 {[%emt 0:00:12]} 40. Rh7 {
[%emt 0:00:08]} Rg8 {[%emt 0:00:03]} 41. Kf2 {[%emt 0:00:11]} Nf6 {[%emt 0:00:
09]} 42. Rhxg7+ {[%emt 0:00:10]} Rxg7 {[%emt 0:00:02]} 43. Rxf4 {[%emt 0:00:05]
} Rg4 {[%emt 0:00:12]} 44. Kf3 {[%emt 0:00:16]} Rxf4+ {[%emt 0:00:09]} 45. Kxf4
Nd5+ {[%emt 0:00:14]} 46. Ke5 {[%emt 0:00:16]} Ne3 {[%emt 0:00:02]} 47. Bc3 {
[%emt 0:00:13]} Nxg2 {[%emt 0:00:07]} 48. Kd6 {[%emt 0:00:02]} Ne3 {[%emt 0:00:
12]} 49. Kc7 {[%emt 0:00:10]} Nd5+ {[%emt 0:00:02]} 50. Kxb7 {[%emt 0:00:01]}
Nxc3 {[%emt 0:00:02]} 51. Kxc6 {[%emt 0:00:01]} Nxa2 {[%emt 0:00:04]} 52. Kb7 {
[%emt 0:00:34]} Nb4 {[%emt 0:00:15]} 53. c6 {[%emt 0:00:12]} Nxc6 {[%emt 0:00:
34]} 54. Kxc6 {[%emt 0:00:01]} Ke7 {[%emt 0:00:08]} 55. d5 {[%emt 0:00:19]} Kd8
{[%emt 0:00:05]} 56. d6 {[%emt 0:00:05]} a5 {[%emt 0:00:02]} 57. Kb5 {[%emt 0:
00:01]} Kd7 {[%emt 0:00:01]} 58. Kxa5 {[%emt 0:00:01]} Kxd6 1/2-1/2

[Event "European Rapid Championship 2021"]
[Site "Katowice"]
[Date "2021.12.19"]
[Round "9.28"]
[White "Kjartansson, Gudmundur"]
[Black "Liodakis, Konstantinos-Spyros"]
[Result "1-0"]
[ECO "E71"]
[WhiteElo "2402"]
[BlackElo "2114"]
[Annotator "NA"]
[PlyCount "77"]
[EventDate "2021.12.18"]
[EventType "swiss"]
[EventCountry "POL"]
[SourceTitle "playchess.com"]
[Source "ChessBase"]
[SourceQuality "1"]
[TimeControl "900+10"]

1. c4 {[%emt 0:00:02]} Nf6 {[%emt 0:00:28]} 2. Nc3 {[%emt 0:00:07]} g6 {
[%emt 0:00:11]} 3. e4 {[%emt 0:00:19]} d6 {[%emt 0:00:01]} 4. d4 {[%emt 0:00:
02]} Bg7 {[%emt 0:00:01]} 5. h3 {[%emt 0:00:02]} O-O {[%emt 0:00:03]} 6. Be3 {
[%emt 0:00:07]} e5 {[%emt 0:00:06]} 7. d5 {[%emt 0:00:08]} Nh5 {[%emt 0:00:13]}
8. Be2 {[%emt 0:00:46]} Nf4 {[%emt 0:00:24]} 9. Bf3 {[%emt 0:00:02]} g5 {
[%emt 0:00:55]} 10. g3 {[%emt 0:00:08]} Ng6 {[%emt 0:00:02]} 11. Qd2 {[%emt 0:
00:08]} h6 {[%emt 0:00:07]} 12. h4 {[%emt 0:00:36]} g4 {[%emt 0:00:47]} 13. Be2
{[%emt 0:00:22]} h5 {[%emt 0:00:22]} 14. f3 {[%emt 0:00:03]} f5 {[%emt 0:00:31]
} 15. exf5 {[%emt 0:00:04]} Bxf5 {[%emt 0:00:03]} 16. fxg4 {[%emt 0:00:05]}
hxg4 {[%emt 0:00:18]} 17. O-O-O {[%emt 0:00:24]} Na6 {[%emt 0:00:34]} 18. Rf1 {
[%emt 0:00:19]} Qd7 {[%emt 0:00:34]} 19. h5 {[%emt 0:00:41]} Ne7 {[%emt 0:00:
44]} 20. h6 {[%emt 0:00:03]} Bf6 {[%emt 0:00:09]} 21. Bg5 {[%emt 0:01:40]} Nc5
{[%emt 0:01:13]} 22. Rh4 {[%emt 0:02:19]} Ng6 {[%emt 0:02:56]} 23. Bxf6 Rxf6 {
[%emt 0:00:01]} 24. Rxg4 {[%emt 0:02:24]} Raf8 {[%emt 0:00:44]} 25. Qg5 {
[%emt 0:01:00]} Kh7 {[%emt 0:00:13]} 26. b4 {[%emt 0:03:52]} Bxg4 {[%emt 0:00:
26]} 27. Rxf6 {[%emt 0:00:12]} Rxf6 {[%emt 0:00:02]} 28. Qxf6 {[%emt 0:00:01]}
Bxe2 {[%emt 0:00:03]} 29. Ngxe2 {[%emt 0:00:12]} Nd3+ {[%emt 0:00:08]} 30. Kd2
{[%emt 0:00:03]} Nxb4 {[%emt 0:00:12]} 31. Ne4 {[%emt 0:02:15]} Qe7 {[%emt 0:
00:57]} 32. Qf5 {[%emt 0:00:58]} Kxh6 {[%emt 0:00:42]} 33. g4 {[%emt 0:00:18]}
Qf8 {[%emt 0:03:05]} 34. g5+ {[%emt 0:00:18]} Kg7 {[%emt 0:00:10]} 35. Nf6 {
[%emt 0:00:02]} Qf7 {[%emt 0:00:30]} 36. Ng3 {[%emt 0:00:09]} Na6 {[%emt 0:01:
05]} 37. Ngh5+ {[%emt 0:00:20]} Kh8 {[%emt 0:00:40]} 38. Qc8+ {[%emt 0:00:01]}
Nf8 {[%emt 0:00:07]} 39. g6 {[%emt 0:00:06]} 1-0

[Event "European Rapid Championship 2021"]
[Site "Katowice"]
[Date "2021.12.19"]
[Round "9.28"]
[White "Redzisz, Michal"]
[Black "Rudnicki, Milosz"]
[Result "1-0"]
[ECO "E46"]
[WhiteElo "2257"]
[BlackElo "2200"]
[Annotator "NA"]
[PlyCount "123"]
[EventDate "2021.12.18"]
[EventType "swiss"]
[EventCountry "POL"]
[SourceTitle "playchess.com"]
[Source "ChessBase"]
[SourceQuality "1"]
[TimeControl "900+10"]

1. d4 {[%emt 0:00:02]} Nf6 {[%emt 0:00:03]} 2. c4 {[%emt 0:00:03]} e6 {[%emt 0:
00:02]} 3. Nc3 {[%emt 0:00:05]} Bb4 {[%emt 0:00:02]} 4. e3 {[%emt 0:00:01]} O-O
{[%emt 0:00:20]} 5. Nge2 {[%emt 0:00:02]} d5 {[%emt 0:00:40]} 6. a3 {[%emt 0:
00:01]} Be7 {[%emt 0:00:12]} 7. cxd5 {[%emt 0:00:01]} exd5 {[%emt 0:00:25]} 8.
Nf4 {[%emt 0:00:01]} c6 {[%emt 0:01:00]} 9. Bd3 {[%emt 0:00:14]} Re8 {[%emt 0:
00:32]} 10. O-O {[%emt 0:00:02]} Nbd7 {[%emt 0:00:02]} 11. f3 {[%emt 0:00:14]}
Nf8 {[%emt 0:00:03]} 12. Qc2 {[%emt 0:01:09]} Ne6 {[%emt 0:00:16]} 13. b4 {
[%emt 0:01:19]} Nxf4 {[%emt 0:00:27]} 14. exf4 {[%emt 0:00:01]} a5 {[%emt 0:00:
12]} 15. b5 {[%emt 0:00:33]} c5 {[%emt 0:00:07]} 16. dxc5 {[%emt 0:00:05]}
Bxc5+ {[%emt 0:00:49]} 17. Kh1 {[%emt 0:00:00]} b6 {[%emt 0:01:47]} 18. Na4 {
[%emt 0:00:41]} Bd4 {[%emt 0:00:06]} 19. Bb2 {[%emt 0:00:19]} Bxb2 {[%emt 0:00:
01]} 20. Qxb2 {[%emt 0:00:01]} Bb7 {[%emt 0:00:21]} 21. Qd4 {[%emt 0:00:08]}
Nd7 {[%emt 0:00:19]} 22. Bf5 {[%emt 0:00:34]} Rb8 {[%emt 0:03:08]} 23. Rad1 {
[%emt 0:01:48]} Ba8 {[%emt 0:00:29]} 24. Bxd7 {[%emt 0:00:06]} Qxd7 {[%emt 0:
00:02]} 25. Nxb6 {[%emt 0:00:14]} Qxb5 {[%emt 0:00:10]} 26. Nxa8 {[%emt 0:00:
28]} Rxa8 {[%emt 0:00:03]} 27. Qxd5 {[%emt 0:00:23]} Qa4 {[%emt 0:02:32]} 28.
Qd6 {[%emt 0:01:02]} Re6 {[%emt 0:00:06]} 29. Qc5 {[%emt 0:02:03]} Qxf4 {
[%emt 0:00:22]} 30. Qxa5 {[%emt 0:00:17]} Qb8 {[%emt 0:00:56]} 31. Qb4 {
[%emt 0:01:15]} Rb6 {[%emt 0:01:17]} 32. Qe7 {[%emt 0:00:42]} Re6 {[%emt 0:00:
56]} 33. Qb4 {[%emt 0:03:34]} Rb6 {[%emt 0:00:06]} 34. Qe7 {[%emt 0:00:02]} Re6
{[%emt 0:00:01]} 35. Qc5 {[%emt 0:00:49]} Rea6 {[%emt 0:00:35]} 36. Rd3 {
[%emt 0:00:34]} Ra5 {[%emt 0:01:41]} 37. Qb4 {[%emt 0:00:38]} Qa7 {[%emt 0:00:
30]} 38. Rfd1 {[%emt 0:00:18]} h6 {[%emt 0:00:08]} 39. Rd8+ {[%emt 0:01:07]}
Kh7 {[%emt 0:00:23]} 40. Qe4+ {[%emt 0:00:05]} f5 {[%emt 0:00:01]} 41. Qxa8
Qxa8 {[%emt 0:00:02]} 42. Rxa8 {[%emt 0:00:08]} Rxa8 {[%emt 0:00:01]} 43. Ra1 {
[%emt 0:00:00]} Ra4 {[%emt 0:00:03]} 44. Kg1 {[%emt 0:00:01]} Kg6 {[%emt 0:00:
01]} 45. Kf2 {[%emt 0:00:03]} Kf6 {[%emt 0:00:00]} 46. Ke3 {[%emt 0:00:01]} Ke5
{[%emt 0:00:01]} 47. Ra2 {[%emt 0:00:21]} g5 {[%emt 0:00:19]} 48. Kd3 {[%emt 0:
00:13]} g4 {[%emt 0:01:13]} 49. fxg4 {[%emt 0:00:01]} fxg4 {[%emt 0:00:02]} 50.
Kc3 {[%emt 0:00:08]} Kd5 {[%emt 0:00:06]} 51. Kb3 {[%emt 0:00:04]} Ra8 {
[%emt 0:00:01]} 52. a4 {[%emt 0:00:05]} Kc5 {[%emt 0:00:16]} 53. a5 {[%emt 0:
00:45]} Ra6 {[%emt 0:00:14]} 54. Kc3 {[%emt 0:00:05]} h5 {[%emt 0:00:16]} 55.
g3 {[%emt 0:00:07]} h4 {[%emt 0:00:18]} 56. gxh4 {[%emt 0:00:08]} Kb5 {[%emt 0:
00:12]} 57. Kd4 {[%emt 0:00:09]} Kb4 {[%emt 0:00:01]} 58. Rb2+ {[%emt 0:00:47]}
Ka4 {[%emt 0:00:01]} 59. Ke4 {[%emt 0:00:26]} Rh6 {[%emt 0:00:06]} 60. a6 {
[%emt 0:00:13]} Ka3 {[%emt 0:00:07]} 61. a7 {[%emt 0:00:10]} Ra6 {[%emt 0:00:
31]} 62. Rb7 {[%emt 0:00:05]} 1-0

[Event "European Rapid Championship 2021"]
[Site "Katowice"]
[Date "2021.12.19"]
[Round "9.29"]
[White "Stanisz, Patryk"]
[Black "Wiewiora, Eneasz"]
[Result "1-0"]
[ECO "D37"]
[WhiteElo "2125"]
[BlackElo "2333"]
[Annotator "NA"]
[PlyCount "72"]
[EventDate "2021.12.18"]
[EventType "swiss"]
[EventCountry "POL"]
[SourceTitle "playchess.com"]
[Source "ChessBase"]
[SourceQuality "1"]
[TimeControl "900+10"]

1. Nf3 {[%emt 0:00:01]} Nf6 {[%emt 0:00:01]} 2. d4 {[%emt 0:00:04]} d5 {
[%emt 0:00:10]} 3. c4 {[%emt 0:00:02]} e6 {[%emt 0:00:01]} 4. Nc3 {[%emt 0:00:
01]} a6 {[%emt 0:00:05]} 5. cxd5 {[%emt 0:00:05]} exd5 {[%emt 0:00:02]} 6. Bf4
{[%emt 0:00:01]} Bd6 {[%emt 0:00:07]} 7. g3 {[%emt 0:00:05]} O-O {[%emt 0:00:
10]} 8. Bg2 {[%emt 0:00:33]} Bxf4 {[%emt 0:00:38]} 9. gxf4 {[%emt 0:00:01]} c6
{[%emt 0:00:14]} 10. Ne5 {[%emt 0:00:23]} Bf5 {[%emt 0:00:32]} 11. e3 {[%emt 0:
00:39]} Ne8 {[%emt 0:00:04]} 12. Qh5 {[%emt 0:03:07]} Nd6 {[%emt 0:00:15]} 13.
Qe2 {[%emt 0:02:18]} Re8 {[%emt 0:00:20]} 14. Bf3 {[%emt 0:01:15]} f6 {[%emt 0:
02:02]} 15. Nd3 {[%emt 0:00:01]} Nd7 {[%emt 0:00:18]} 16. Bg4 {[%emt 0:00:57]}
Qe7 {[%emt 0:00:48]} 17. O-O-O {[%emt 0:01:46]} a5 {[%emt 0:00:15]} 18. Kb1 {
[%emt 0:00:02]} a4 {[%emt 0:00:07]} 19. Bxf5 {[%emt 0:00:01]} Nxf5 {[%emt 0:00:
02]} 20. Qc2 {[%emt 0:00:26]} a3 {[%emt 0:02:52]} 21. b3 {[%emt 0:00:09]} Qe6 {
[%emt 0:01:05]} 22. Rhg1 {[%emt 0:00:17]} Re7 {[%emt 0:00:27]} 23. Ne2 {
[%emt 0:00:44]} b6 {[%emt 0:05:36]} 24. Ng3 {[%emt 0:00:47]} Nxg3 {[%emt 0:00:
02]} 25. Rxg3 {[%emt 0:00:01]} Rc8 {[%emt 0:00:06]} 26. Nb4 {[%emt 0:03:03]} c5
{[%emt 0:01:30]} 27. dxc5 {[%emt 0:00:02]} Rxc5 {[%emt 0:00:05]} 28. Qd3 {
[%emt 0:00:00]} Qe4 {[%emt 0:01:17]} 29. Qxe4 {[%emt 0:01:24]} dxe4 {[%emt 0:
00:01]} 30. Nc2 Ra5 {[%emt 0:00:36]} 31. Nd4 {[%emt 0:00:48]} Rd5 {[%emt 0:00:
08]} 32. Rc1 {[%emt 0:00:36]} Nc5 {[%emt 0:00:08]} 33. b4 {[%emt 0:00:46]} Nd3
{[%emt 0:00:01]} 34. Rc8+ {[%emt 0:00:01]} Kf7 {[%emt 0:00:01]} 35. f5 {
[%emt 0:00:09]} g5 {[%emt 0:00:36]} 36. h4 {[%emt 0:00:17]} Nxf2 1-0

[Event "European Rapid Championship 2021"]
[Site "Katowice"]
[Date "2021.12.19"]
[Round "9.29"]
[White "Kolesnikovs, Ivans"]
[Black "Sliwicka, Alicja"]
[Result "0-1"]
[ECO "A56"]
[WhiteElo "1962"]
[BlackElo "2303"]
[Annotator "NA"]
[PlyCount "54"]
[EventDate "2021.12.18"]
[EventType "swiss"]
[EventCountry "POL"]
[SourceTitle "playchess.com"]
[Source "ChessBase"]
[SourceQuality "1"]
[TimeControl "900+10"]

1. d4 {[%emt 0:00:03]} Nf6 {[%emt 0:00:01]} 2. c4 {[%emt 0:00:02]} c5 {[%emt 0:
00:02]} 3. Nf3 {[%emt 0:00:02]} cxd4 {[%emt 0:00:03]} 4. Nxd4 {[%emt 0:00:02]}
e5 {[%emt 0:00:02]} 5. Nb5 {[%emt 0:00:07]} d5 {[%emt 0:00:01]} 6. cxd5 {
[%emt 0:00:26]} Bc5 {[%emt 0:00:03]} 7. e3 {[%emt 0:00:52]} O-O {[%emt 0:00:04]
} 8. N5c3 {[%emt 0:00:22]} e4 {[%emt 0:00:06]} 9. Be2 {[%emt 0:00:15]} Bf5 {
[%emt 0:00:15]} 10. a3 {[%emt 0:00:13]} Nbd7 {[%emt 0:00:09]} 11. b4 {[%emt 0:
00:18]} Bd6 {[%emt 0:00:04]} 12. Bb2 {[%emt 0:00:04]} a6 {[%emt 0:01:54]} 13.
Nd2 {[%emt 0:00:06]} Ne5 {[%emt 0:00:21]} 14. Nc4 {[%emt 0:00:25]} Nxc4 {
[%emt 0:00:18]} 15. Bxc4 {[%emt 0:00:01]} Nd7 {[%emt 0:03:04]} 16. g4 {[%emt 0:
01:30]} Ne5 {[%emt 0:00:38]} 17. Be2 {[%emt 0:00:04]} Bg6 {[%emt 0:01:10]} 18.
h4 {[%emt 0:00:13]} h6 {[%emt 0:00:13]} 19. Qd4 {[%emt 0:01:39]} Rc8 {[%emt 0:
02:17]} 20. h5 {[%emt 0:01:06]} Bh7 {[%emt 0:00:02]} 21. Nxe4 {[%emt 0:00:02]}
Rc4 {[%emt 0:00:26]} 22. Nxd6 {[%emt 0:02:01]} Rxd4 {[%emt 0:00:03]} 23. exd4 {
[%emt 0:00:06]} Nd3+ {[%emt 0:00:47]} 24. Bxd3 {[%emt 0:00:04]} Bxd3 {[%emt 0:
00:01]} 25. Nf5 {[%emt 0:00:12]} Bxf5 {[%emt 0:00:50]} 26. gxf5 {[%emt 0:00:01]
} Re8+ {[%emt 0:00:01]} 27. Kf1 {[%emt 0:00:02]} Qxd5 {[%emt 0:00:06]} 0-1

[Event "European Rapid Championship 2021"]
[Site "Katowice"]
[Date "2021.12.19"]
[Round "9.30"]
[White "Nasuta, Grzegorz"]
[Black "Karpus, Michal"]
[Result "1-0"]
[ECO "C45"]
[WhiteElo "2345"]
[BlackElo "2185"]
[Annotator "NA"]
[PlyCount "91"]
[EventDate "2021.12.18"]
[EventType "swiss"]
[EventCountry "POL"]
[SourceTitle "playchess.com"]
[Source "ChessBase"]
[SourceQuality "1"]
[TimeControl "900+10"]

1. e4 {[%emt 0:00:02]} e5 {[%emt 0:00:01]} 2. Nf3 {[%emt 0:00:01]} Nc6 {
[%emt 0:00:02]} 3. d4 {[%emt 0:00:02]} exd4 {[%emt 0:00:02]} 4. Nxd4 {[%emt 0:
00:01]} Bc5 {[%emt 0:00:03]} 5. Nb3 {[%emt 0:00:02]} Bb6 {[%emt 0:00:03]} 6.
Nc3 {[%emt 0:00:01]} Nf6 {[%emt 0:00:44]} 7. Bg5 {[%emt 0:00:02]} h6 {[%emt 0:
00:07]} 8. Bh4 {[%emt 0:00:02]} d6 {[%emt 0:00:12]} 9. Bb5 {[%emt 0:00:54]} a6
{[%emt 0:02:21]} 10. Bxc6+ {[%emt 0:00:08]} bxc6 {[%emt 0:00:01]} 11. Qe2 {
[%emt 0:00:06]} O-O {[%emt 0:00:48]} 12. O-O-O {[%emt 0:00:03]} Qe7 {[%emt 0:
00:02]} 13. f3 {[%emt 0:00:01]} Qe5 {[%emt 0:00:43]} 14. g4 {[%emt 0:01:25]} d5
{[%emt 0:00:39]} 15. Bxf6 {[%emt 0:02:42]} Qxf6 {[%emt 0:00:09]} 16. exd5 {
[%emt 0:00:02]} Bb7 {[%emt 0:00:09]} 17. Kb1 {[%emt 0:06:07]} Rfe8 {[%emt 0:00:
54]} 18. Qg2 {[%emt 0:00:35]} Rad8 {[%emt 0:00:12]} 19. Ne4 {[%emt 0:00:03]}
Qg6 {[%emt 0:00:40]} 20. Nbc5 {[%emt 0:01:30]} Bc8 {[%emt 0:00:07]} 21. Nd3 {
[%emt 0:02:28]} cxd5 {[%emt 0:00:35]} 22. Nf4 {[%emt 0:00:16]} Qc6 {[%emt 0:00:
02]} 23. Nc3 {[%emt 0:00:01]} d4 {[%emt 0:01:24]} 24. Ne4 {[%emt 0:00:01]} d3 {
[%emt 0:02:04]} 25. Rxd3 {[%emt 0:00:19]} Rxd3 {[%emt 0:00:15]} 26. Nxd3 {
[%emt 0:00:02]} f5 {[%emt 0:00:06]} 27. gxf5 {[%emt 0:00:13]} Bxf5 {[%emt 0:00:
01]} 28. Re1 {[%emt 0:00:06]} Kh8 {[%emt 0:00:10]} 29. Qg3 {[%emt 0:01:05]} Qd5
{[%emt 0:02:13]} 30. Qf4 {[%emt 0:01:01]} Bg6 {[%emt 0:00:18]} 31. Qg3 {
[%emt 0:00:31]} Bf7 {[%emt 0:00:30]} 32. Nc3 {[%emt 0:00:08]} Rxe1+ {[%emt 0:
00:03]} 33. Qxe1 {[%emt 0:00:24]} Qxf3 {[%emt 0:01:27]} 34. Ne5 {[%emt 0:00:01]
} Qf5 {[%emt 0:00:03]} 35. Nxf7+ {[%emt 0:00:01]} Qxf7 {[%emt 0:00:01]} 36. a3
{[%emt 0:00:08]} Ba5 {[%emt 0:00:52]} 37. b4 {[%emt 0:00:23]} Bb6 {[%emt 0:00:
01]} 38. Qe4 {[%emt 0:00:02]} Qf1+ {[%emt 0:00:59]} 39. Kb2 {[%emt 0:00:01]}
Qf2 {[%emt 0:00:05]} 40. Qe8+ {[%emt 0:00:13]} Kh7 {[%emt 0:00:01]} 41. Qe4+ {
[%emt 0:00:01]} Kh8 {[%emt 0:00:01]} 42. Nd5 {[%emt 0:00:37]} Qxh2 {[%emt 0:00:
15]} 43. Qe8+ {[%emt 0:00:01]} Kh7 {[%emt 0:00:01]} 44. Qe4+ {[%emt 0:00:01]}
Kh8 {[%emt 0:00:01]} 45. Ne7 {[%emt 0:00:21]} Qd6 {[%emt 0:00:23]} 46. Qa8+ {
[%emt 0:00:02]} 1-0

[Event "European Rapid Championship 2021"]
[Site "Katowice"]
[Date "2021.12.19"]
[Round "9.30"]
[White "Musial, Tomasz"]
[Black "Chojnacki, Slawomir"]
[Result "1-0"]
[ECO "D30"]
[WhiteElo "1916"]
[BlackElo "2165"]
[Annotator "NA"]
[PlyCount "63"]
[EventDate "2021.12.18"]
[EventType "swiss"]
[EventCountry "POL"]
[SourceTitle "playchess.com"]
[Source "ChessBase"]
[SourceQuality "1"]
[TimeControl "900+10"]

1. d4 {[%emt 0:00:01]} d5 {[%emt 0:00:15]} 2. c4 {[%emt 0:00:02]} e6 {[%emt 0:
00:01]} 3. Nf3 {[%emt 0:00:01]} Nf6 {[%emt 0:00:01]} 4. g3 {[%emt 0:00:02]} b6
{[%emt 0:00:06]} 5. cxd5 {[%emt 0:00:06]} Nxd5 {[%emt 0:00:10]} 6. Bg2 {
[%emt 0:00:13]} Bb7 {[%emt 0:00:01]} 7. O-O {[%emt 0:00:03]} Be7 {[%emt 0:00:
01]} 8. Ne5 {[%emt 0:01:14]} O-O {[%emt 0:00:14]} 9. e4 {[%emt 0:00:15]} Nf6 {
[%emt 0:00:16]} 10. Nc3 {[%emt 0:00:04]} Nbd7 {[%emt 0:00:23]} 11. Nc4 {
[%emt 0:01:15]} Bb4 {[%emt 0:01:09]} 12. Re1 {[%emt 0:02:47]} b5 {[%emt 0:02:
29]} 13. Nd2 {[%emt 0:00:07]} a6 {[%emt 0:00:10]} 14. a3 {[%emt 0:00:38]} Ba5 {
[%emt 0:00:55]} 15. e5 {[%emt 0:01:25]} Bxg2 {[%emt 0:01:08]} 16. exf6 {
[%emt 0:00:18]} Bb7 {[%emt 0:00:03]} 17. fxg7 {[%emt 0:00:22]} Re8 {[%emt 0:02:
06]} 18. Nde4 {[%emt 0:00:40]} f5 {[%emt 0:01:17]} 19. Ng5 {[%emt 0:01:13]} Nf6
{[%emt 0:01:52]} 20. b4 {[%emt 0:01:26]} Bb6 {[%emt 0:00:01]} 21. Nxe6 {
[%emt 0:00:18]} Rxe6 {[%emt 0:01:35]} 22. Rxe6 {[%emt 0:00:03]} Bxd4 {[%emt 0:
00:18]} 23. Qb3 {[%emt 0:01:42]} Kxg7 {[%emt 0:00:07]} 24. Bg5 {[%emt 0:00:27]}
Bxf2+ {[%emt 0:00:47]} 25. Kxf2 {[%emt 0:02:02]} Ng4+ {[%emt 0:00:05]} 26. Ke1
{[%emt 0:00:23]} Qxg5 {[%emt 0:00:20]} 27. Rd1 {[%emt 0:00:37]} Nxh2 {[%emt 0:
00:12]} 28. Ne2 {[%emt 0:00:33]} Rd8 {[%emt 0:02:42]} 29. Qc3+ {[%emt 0:00:28]}
Kg8 {[%emt 0:00:20]} 30. Qxc7 {[%emt 0:00:31]} Rxd1+ {[%emt 0:00:48]} 31. Kxd1
{[%emt 0:00:01]} Qh5 {[%emt 0:00:01]} 32. Re7 {[%emt 0:00:38]} 1-0